bitfinex-derivatives/quotes_BTCF0:USTF0_20250902
["timestamp","ask_amount","ask_price","bid_price","bid_amount"]
[1756801007348,0.37118,110200.0,110190.0,0.38177506]
[1756801007759,0.37318,110200.0,110190.0,0.38177506]
[1756801008557,0.37518,110200.0,110190.0,0.38177506]
[1756801011461,0.37518,110200.0,110190.0,0.44708629]
[1756801012848,0.66902506,110200.0,110190.0,0.44708629]
[1756801013164,1.21287012,110200.0,110190.0,0.15324123]
[1756801013365,1.21287012,110200.0,110190.0,0.06984123]
[1756801015065,1.21287012,110200.0,110190.0,0.00453]
[1756801015265,0.62518,110200.0,110190.0,0.00453]
[1756801015564,1.21287012,110200.0,110190.0,0.00453]
[1756801016267,2.06027012,110200.0,110190.0,0.00453]
[1756801017467,1.76636259,110200.0,110190.0,0.00453]
[1756801019060,1.47258,110200.0,110190.0,0.00453]
[1756801019267,1.51636259,110200.0,110190.0,0.00453]
[1756801019667,1.51436259,110200.0,110190.0,0.00453]
[1756801019869,1.51136259,110200.0,110190.0,0.00453]
[1756801021175,1.51036259,110200.0,110190.0,0.00453]
[1756801023569,0.37018,110200.0,110190.0,0.00453]
[1756801023875,1.50984259,110200.0,110190.0,0.00453]
[1756801024476,0.66396259,110200.0,110190.0,0.00453]
[1756801024775,1.50952259,110200.0,110190.0,0.00453]
[1756801032074,0.66396259,110200.0,110190.0,0.02872]
[1756801032376,1.50836259,110200.0,110190.0,0.05265]
[1756801032683,0.37018,110200.0,110190.0,0.08762]
[1756801032883,1.47632259,110200.0,110190.0,0.08762]
[1756801033077,0.66396259,110200.0,110190.0,0.05265]
[1756801033280,1.50836259,110200.0,110190.0,0.05265]
[1756801033575,1.50736259,110200.0,110190.0,0.05265]
[1756801034077,1.50536259,110200.0,110190.0,0.05265]
[1756801034283,1.50636259,110200.0,110190.0,0.05265]
[1756801036087,1.50636259,110200.0,110190.0,0.08762]
[1756801036276,1.50636259,110200.0,110190.0,0.11796123]
[1756801036678,1.50636259,110200.0,110190.0,0.17921412]
[1756801040688,1.50636259,110200.0,110190.0,0.21418412]
[1756801040986,1.50636259,110200.0,110190.0,0.17921412]
[1756801041786,1.50632259,110200.0,110190.0,0.17921412]
[1756801042687,1.50632259,110200.0,110190.0,0.11796123]
[1756801042987,1.50632259,110200.0,110190.0,0.17921412]
[1756801047191,1.21254,110200.0,110190.0,0.17921412]
[1756801047393,1.50632259,110200.0,110190.0,0.17921412]
[1756801048492,1.21254,110200.0,110190.0,0.17921412]
[1756801048794,1.50632259,110200.0,110190.0,0.17921412]
[1756801049287,1.21254,110200.0,110190.0,0.17921412]
[1756801049596,1.21254,110200.0,110190.0,0.21418412]
[1756801049597,1.50628259,110200.0,110190.0,0.21418412]
[1756801051492,0.66196259,110200.0,110190.0,0.21418412]
[1756801051693,1.50628259,110200.0,110190.0,0.21418412]
[1756801052798,0.36818,110200.0,110190.0,0.21418412]
[1756801052991,1.2125,110200.0,110190.0,0.50796671]
[1756801053687,1.50628259,110200.0,110190.0,0.21418412]
[1756801054198,1.50528259,110200.0,110190.0,0.21418412]
[1756801054798,1.50628259,110200.0,110190.0,0.21418412]
[1756801055096,1.50428259,110200.0,110190.0,0.21418412]
[1756801056199,1.2125,110200.0,110190.0,0.21418412]
[1756801056400,1.50628259,110200.0,110190.0,0.21418412]
[1756801058395,0.66196259,110200.0,110190.0,0.21418412]
[1756801058697,1.50620259,110200.0,110190.0,0.21418412]
[1756801064807,1.21242,110200.0,110190.0,0.21418412]
[1756801065005,1.50620259,110200.0,110190.0,0.21418412]
[1756801065205,1.50620259,110200.0,110190.0,0.17921412]
[1756801065808,1.50620259,110200.0,110190.0,0.13109412]
[1756801066002,1.50620259,110200.0,110190.0,0.00453]
[1756801066205,1.77632507,110200.0,110180.0,0.05455123]
[1756801066400,1.23254248,110200.0,110190.0,0.06125289]
[1756801066804,1.22178248,110200.0,110180.0,0.05455123]
[1756801067004,1.22178248,110200.0,110190.0,0.06125289]
[1756801067308,1.19966,110200.0,110190.0,0.06125289]
[1756801067605,1.51260523,110200.0,110180.0,0.05455123]
[1756801067807,1.21882264,110200.0,110190.0,0.06125289]
[1756801068006,1.51260523,110200.0,110190.0,0.06125289]
[1756801068307,1.49244259,110200.0,110180.0,0.05455123]
[1756801068607,1.19866,110200.0,110190.0,0.06125289]
[1756801069306,1.19866,110200.0,110180.0,0.05455123]
[1756801069606,1.20266,110200.0,110190.0,0.06125289]
[1756801069907,1.20466,110200.0,110190.0,0.06125289]
[1756801070105,1.20466,110200.0,110180.0,0.05455123]
[1756801070407,1.20066,110200.0,110190.0,0.06125289]
[1756801070605,1.20366,110200.0,110190.0,0.06125289]
[1756801070903,1.49844259,110200.0,110180.0,0.05455123]
[1756801071107,1.20566,110200.0,110190.0,0.06125289]
[1756801071307,1.49944259,110200.0,110190.0,0.06125289]
[1756801071501,1.20566,110200.0,110180.0,0.05455123]
[1756801071699,0.29378259,110190.0,110180.0,0.07724123]
[1756801071899,0.6242015,110190.0,110180.0,0.07724123]
[1756801072411,0.6242015,110190.0,110180.0,0.16320412]
[1756801072709,0.6242015,110190.0,110180.0,0.10195123]
[1756801073104,0.6242015,110190.0,110180.0,0.16320412]
[1756801073305,0.6272015,110190.0,110180.0,0.16320412]
[1756801074309,0.6292015,110190.0,110180.0,0.16320412]
[1756801077411,0.6292015,110190.0,110180.0,0.13849412]
[1756801077713,0.92298409,110190.0,110180.0,0.13849412]
[1756801078106,0.92298409,110190.0,110180.0,0.05455123]
[1756801079512,0.92321161,110190.0,110170.0,0.1557366]
[1756801079709,0.84388,110180.0,110170.0,0.1557366]
[1756801079913,1.16388,110180.0,110170.0,0.06125289]
[1756801080613,1.16388,110180.0,110160.0,0.13700123]
[1756801080813,1.45777635,110180.0,110170.0,0.06125289]
[1756801081311,1.45777635,110180.0,110160.0,0.08245]
[1756801081513,1.45877635,110180.0,110170.0,0.06125289]
[1756801081815,0.9087927,110180.0,110170.0,0.06125289]
[1756801082016,1.7546727,110180.0,110170.0,0.0474]
[1756801082316,1.7546327,110180.0,110170.0,0.0474]
[1756801082617,1.7556327,110180.0,110170.0,0.0474]
[1756801083010,1.7546327,110180.0,110170.0,0.0474]
[1756801083216,1.7556727,110180.0,110170.0,0.14370289]
[1756801083817,1.7546727,110180.0,110170.0,0.14370289]
[1756801084007,1.7566727,110180.0,110170.0,0.14370289]
[1756801084616,1.7566727,110180.0,110170.0,0.10865289]
[1756801086516,1.7566327,110180.0,110170.0,0.14313289]
[1756801087014,0.325,110180.0,110170.0,0.14313289]
[1756801087219,0.61889635,110180.0,110170.0,0.43702924]
[1756801087517,1.21833635,110180.0,110170.0,0.43702924]
[1756801088721,1.21833635,110180.0,110170.0,0.14313289]
[1756801088921,1.21833635,110180.0,110170.0,0.43702924]
[1756801089220,1.21533635,110180.0,110170.0,0.14313289]
[1756801089525,1.21533635,110180.0,110170.0,0.43702924]
[1756801090222,0.61589635,110180.0,110170.0,0.43702924]
[1756801090420,1.45965635,110180.0,110170.0,0.43702924]
[1756801091025,1.45965635,110180.0,110170.0,0.14313289]
[1756801091322,1.46065635,110180.0,110170.0,0.43702924]
[1756801092622,0.323,110180.0,110170.0,0.43702924]
[1756801092925,0.61689635,110180.0,110170.0,0.43702924]
[1756801093225,1.21437635,110180.0,110170.0,0.43702924]
[1756801095329,1.21437635,110180.0,110170.0,0.14313289]
[1756801095525,1.21437635,110180.0,110170.0,0.43702924]
[1756801095726,1.21437635,110180.0,110170.0,0.14313289]
[1756801096024,1.5082727,110180.0,110170.0,0.14313289]
[1756801096225,1.21437635,110180.0,110170.0,0.14313289]
[1756801098330,1.21437635,110180.0,110170.0,0.43702924]
[1756801098832,0.92048,110180.0,110170.0,0.43702924]
[1756801099016,1.21437635,110180.0,110170.0,0.43702924]
[1756801099625,1.5082727,110180.0,110170.0,0.43702924]
[1756801102124,1.5082727,110180.0,110170.0,0.14313289]
[1756801102331,1.5082727,110180.0,110170.0,0.43702924]
[1756801102526,1.5082727,110180.0,110170.0,0.14313289]
[1756801102728,1.5082727,110180.0,110170.0,0.08188]
[1756801102927,1.5082727,110180.0,110170.0,0.14313289]
[1756801105230,1.5082727,110180.0,110170.0,0.19768412]
[1756801105624,1.51719106,110180.0,110170.0,0.19768412]
[1756801106236,1.51719106,110180.0,110170.0,0.10865289]
[1756801107237,1.51719106,110180.0,110170.0,0.19768412]
[1756801107437,1.76303106,110180.0,110170.0,0.19768412]
[1756801108038,0.91971106,110180.0,110170.0,0.19768412]
[1756801108238,1.76303106,110180.0,110170.0,0.49158047]
[1756801108936,1.76303106,110180.0,110170.0,0.19768412]
[1756801109334,1.76303106,110180.0,110170.0,0.49158047]
[1756801110738,1.76303106,110180.0,110170.0,0.19768412]
[1756801110938,1.76303106,110180.0,110170.0,0.49158047]
[1756801111644,1.76303106,110180.0,110170.0,0.19768412]
[1756801111842,1.76303106,110180.0,110170.0,0.49158047]
[1756801112038,1.17523836,110180.0,110170.0,0.49158047]
[1756801112342,1.76303106,110180.0,110170.0,0.49158047]
[1756801115635,1.76303106,110180.0,110170.0,0.43032758]
[1756801116538,1.76303106,110180.0,110170.0,0.13643123]
[1756801116740,1.76303106,110180.0,110170.0,0.43032758]
[1756801117246,1.76303106,110180.0,110170.0,0.13643123]
[1756801118643,1.76303106,110180.0,110170.0,0.05455123]
[1756801118845,2.30692741,110180.0,110170.0,0.05455123]
[1756801119148,2.32773936,110180.0,110160.0,0.05455123]
[1756801119442,0.5877927,110170.0,110150.0,0.12093946]
[1756801119646,1.4308327,110160.0,110150.0,0.45008581]
[1756801119846,1.7408327,110160.0,110150.0,0.45008581]
[1756801120643,1.7408327,110160.0,110150.0,0.15618946]
[1756801120948,1.7408327,110160.0,110150.0,0.21744235]
[1756801121137,1.44693635,110160.0,110150.0,0.5123387]
[1756801121338,0.86304,110160.0,110150.0,0.5264787]
[1756801121642,1.51693635,110160.0,110150.0,0.5264787]
[1756801121946,1.13693635,110160.0,110150.0,0.5264787]
[1756801122145,1.45693635,110160.0,110150.0,0.5264787]
[1756801122846,1.45693635,110160.0,110150.0,0.5254787]
[1756801124346,1.53117728,110160.0,110150.0,0.5254787]
[1756801124846,1.21117728,110160.0,110150.0,0.5254787]
[1756801125047,1.54117728,110160.0,110150.0,0.5254787]
[1756801128148,1.54117728,110160.0,110150.0,0.21306412]
[1756801128348,1.54117728,110160.0,110150.0,0.50696047]
[1756801128545,1.24728093,110160.0,110150.0,0.50696047]
[1756801128847,1.56117728,110160.0,110150.0,0.50696047]
[1756801129252,0.71813728,110160.0,110150.0,0.50696047]
[1756801129552,1.56093728,110160.0,110150.0,0.50696047]
[1756801129850,1.56089728,110160.0,110150.0,0.50696047]
[1756801130048,0.91696093,110160.0,110150.0,0.50696047]
[1756801130347,1.21085728,110160.0,110150.0,0.45240924]
[1756801131048,1.21085728,110160.0,110150.0,0.53411918]
[1756801132650,1.21085728,110160.0,110150.0,0.24022283]
[1756801132852,1.21085728,110160.0,110150.0,0.47286629]
[1756801133042,1.21085728,110160.0,110150.0,0.53411918]
[1756801133347,0.91696093,110160.0,110150.0,0.53411918]
[1756801133651,1.21085728,110160.0,110150.0,0.53411918]
[1756801133948,1.21085728,110160.0,110150.0,0.24022283]
[1756801134252,1.21085728,110160.0,110150.0,0.53411918]
[1756801135753,1.21085728,110160.0,110150.0,0.45240924]
[1756801136559,0.36813728,110160.0,110150.0,0.45240924]
[1756801136758,1.21069728,110160.0,110150.0,0.45240924]
[1756801137961,1.21069728,110160.0,110150.0,0.15851289]
[1756801138265,1.52069728,110160.0,110150.0,0.45240924]
[1756801138653,1.52069728,110160.0,110150.0,0.51773526]
[1756801139359,1.52069728,110160.0,110150.0,0.45240924]
[1756801139555,0.93680093,110160.0,110150.0,0.15851289]
[1756801139760,1.27680093,110160.0,110150.0,0.15851289]
[1756801140851,1.27680093,110160.0,110150.0,0.10912289]
[1756801141160,1.27680093,110160.0,110150.0,0.17445405]
[1756801141460,1.57072967,110160.0,110150.0,0.17445405]
[1756801142555,1.59076187,110160.0,110150.0,0.17445405]
[1756801142957,1.51652094,110160.0,110150.0,0.17445405]
[1756801143459,1.51652094,110160.0,110150.0,0.20970405]
[1756801143961,1.52652094,110160.0,110150.0,0.20970405]
[1756801144162,1.1825922,110160.0,110150.0,0.20970405]
[1756801145462,1.1825922,110160.0,110150.0,0.14437289]
[1756801146053,0.8625922,110160.0,110150.0,0.14437289]
[1756801146263,1.2125922,110160.0,110150.0,0.15908289]
[1756801148054,0.8622322,110160.0,110150.0,0.15908289]
[1756801148458,0.8622322,110160.0,110150.0,0.24079283]
[1756801148857,0.8622322,110160.0,110150.0,0.53472157]
[1756801150957,0.0200322,110160.0,110150.0,0.53472157]
[1756801151156,0.4616322,110160.0,110150.0,0.53472157]
[1756801152764,0.0200322,110160.0,110150.0,0.53472157]
[1756801153867,0.0200322,110160.0,110150.0,0.45301163]
[1756801154967,0.0200322,110160.0,110150.0,0.53472157]
[1756801157258,0.0200322,110160.0,110150.0,0.53572157]
[1756801157469,0.0200322,110160.0,110150.0,0.60739846]
[1756801157663,0.0200322,110160.0,110150.0,0.60639846]
[1756801157967,0.0200322,110160.0,110150.0,0.60739846]
[1756801162658,0.0200322,110160.0,110150.0,0.54614557]
[1756801163069,0.0200322,110160.0,110150.0,0.60739846]
[1756801166670,0.0200322,110160.0,110150.0,0.52568852]
[1756801166867,0.0200322,110160.0,110150.0,0.60739846]
[1756801167974,0.0200322,110160.0,110150.0,0.60639846]
[1756801168272,0.0200322,110160.0,110150.0,0.59005772]
[1756801170474,0.0200322,110160.0,110150.0,0.52468852]
[1756801170862,0.0200322,110160.0,110150.0,0.23075978]
[1756801171063,0.0200322,110160.0,110150.0,0.52468852]
[1756801171674,0.0200322,110160.0,110150.0,0.52568852]
[1756801173972,0.0200322,110160.0,110150.0,0.45401163]
[1756801175172,0.0200322,110160.0,110150.0,0.53572157]
[1756801176577,0.32317056,110180.0,110170.0,0.08458]
[1756801176578,0.02924182,110180.0,110170.0,0.08458]
[1756801176788,0.36924182,110180.0,110170.0,0.37850874]
[1756801177080,0.61032346,110180.0,110170.0,0.44387728]
[1756801177383,0.61032346,110180.0,110170.0,0.50513017]
[1756801177975,0.61232346,110180.0,110170.0,0.50513017]
[1756801178376,0.61332346,110180.0,110170.0,0.50513017]
[1756801178981,0.61132346,110180.0,110170.0,0.50513017]
[1756801179682,0.341,110180.0,110170.0,0.52366544]
[1756801179884,0.34,110180.0,110170.0,0.52366544]
[1756801180469,0.34,110180.0,110170.0,0.52466544]
[1756801181174,0.34,110180.0,110170.0,0.2307367]
[1756801181373,0.34,110180.0,110170.0,0.52466544]
[1756801185374,0.34,110180.0,110170.0,0.7092969]
[1756801185577,0.02041891,110190.0,110180.0,0.08458]
[1756801185778,0.38041891,110190.0,110180.0,0.5049952]
[1756801186382,0.38041891,110190.0,110180.0,0.5957472]
[1756801188484,0.38041891,110190.0,110180.0,0.5967472]
[1756801191586,0.17041891,110190.0,110180.0,0.5967472]
[1756801192181,0.17041891,110190.0,110180.0,0.53151363]
[1756801192688,0.17041891,110190.0,110180.0,0.47026074]
[1756801193084,0.17041891,110190.0,110180.0,1.37207363]
[1756801193285,0.15,110190.0,110180.0,1.37207363]
[1756801195082,0.15,110190.0,110180.0,1.37195363]
[1756801195790,0.08874711,110190.0,110180.0,1.31070074]
[1756801196188,0.02912801,110200.0,110180.0,1.27339074]
[1756801196492,0.39912801,110200.0,110190.0,0.37850874]
[1756801196784,0.10001147,110200.0,110190.0,0.82841495]
[1756801196989,0.02001147,110200.0,110190.0,0.82841495]
[1756801197391,0.02001147,110200.0,110190.0,1.66877495]
[1756801198997,0.02001147,110200.0,110190.0,1.91877495]
[1756801199187,0.02001147,110200.0,110190.0,1.67794599]
[1756801199586,0.02001147,110200.0,110190.0,1.67726911]
[1756801199886,0.02001147,110200.0,110190.0,0.83690911]
[1756801200192,0.02001147,110200.0,110190.0,1.67710911]
[1756801202791,0.02001147,110200.0,110190.0,1.61187554]
[1756801202996,0.02001147,110200.0,110190.0,1.6025845]
[1756801203391,0.02001147,110200.0,110190.0,1.6025445]
[1756801206899,0.2935903,110220.0,110210.0,0.04724]
[1756801207093,0.6335903,110220.0,110210.0,0.3778703]
[1756801207701,0.34,110220.0,110210.0,0.3778703]
[1756801207902,0.6335903,110220.0,110210.0,0.3778703]
[1756801208394,0.34,110220.0,110210.0,0.3778703]
[1756801208800,0.3490887,110220.0,110210.0,0.3778703]
[1756801209199,0.34,110220.0,110210.0,0.6896982]
[1756801209498,0.342,110220.0,110210.0,0.75485001]
[1756801209816,0.345,110220.0,110210.0,1.59461001]
[1756801209991,0.005,110220.0,110210.0,1.59461001]
[1756801210189,0.01987668,110240.0,110230.0,0.04724]
[1756801210395,0.37908729,110240.0,110230.0,0.3778703]
[1756801212310,0.38108729,110240.0,110230.0,0.3778703]
[1756801212610,0.38108729,110240.0,110230.0,0.6714606]
[1756801212907,0.37287668,110240.0,110230.0,1.5110206]
[1756801213098,0.02287668,110240.0,110230.0,1.5110206]
[1756801213299,0.02287668,110240.0,110230.0,1.5761464]
[1756801213998,0.01987668,110240.0,110230.0,1.5771464]
[1756801214399,0.01987668,110240.0,110230.0,1.8271464]
[1756801214610,0.47568,110270.0,110230.0,1.7901064]
[1756801214810,0.67368951,110270.0,110260.0,0.3778703]
[1756801215008,0.38009921,110270.0,110260.0,0.3778703]
[1756801215702,0.63009921,110270.0,110260.0,0.3778703]
[1756801215899,0.63209921,110270.0,110260.0,0.3778703]
[1756801216613,0.92868951,110270.0,110260.0,0.3778703]
[1756801217108,0.38509921,110270.0,110260.0,0.6714606]
[1756801217908,0.38509921,110270.0,110260.0,0.9214606]
[1756801219111,0.02509921,110270.0,110260.0,1.2150509]
[1756801219415,0.005,110270.0,110260.0,1.2150509]
[1756801219714,0.005,110270.0,110260.0,1.3057377]
[1756801222801,0.005,110270.0,110260.0,1.5714377]
[1756801223814,0.005,110270.0,110260.0,2.4104777]
[1756801225216,0.005,110270.0,110260.0,2.1447777]
[1756801226008,0.003,110270.0,110260.0,2.1447777]
[1756801226821,0.31359211,110310.0,110270.0,0.0906705]
[1756801227019,0.63359211,110310.0,110300.0,0.3408303]
[1756801227408,0.6135903,110310.0,110300.0,0.3778703]
[1756801228119,0.6155903,110310.0,110300.0,0.3778703]
[1756801229619,0.6165903,110310.0,110300.0,0.3408303]
[1756801231221,0.6165903,110310.0,110300.0,0.3778703]
[1756801231411,0.6165903,110310.0,110300.0,0.3914403]
[1756801232308,0.573,110310.0,110300.0,0.3914403]
[1756801232709,0.573,110310.0,110300.0,0.09785]
[1756801232912,0.573,110310.0,110300.0,0.6850306]
[1756801233216,0.573,110310.0,110300.0,0.3914403]
[1756801234526,0.573,110310.0,110300.0,0.6850306]
[1756801235021,0.573,110310.0,110300.0,0.3914403]
[1756801236318,0.323,110310.0,110300.0,0.6850306]
[1756801240824,0.323,110310.0,110300.0,0.09785]
[1756801241023,0.6165903,110310.0,110300.0,0.09785]
[1756801241224,0.6165903,110310.0,110300.0,0.3914403]
[1756801241418,0.323,110310.0,110300.0,0.3914403]
[1756801241818,0.6165903,110310.0,110300.0,0.3914403]
[1756801242423,0.323,110310.0,110300.0,0.3914403]
[1756801242624,0.323,110310.0,110300.0,0.3959703]
[1756801242828,0.6165903,110310.0,110300.0,0.3959703]
[1756801243729,0.6165903,110310.0,110300.0,0.10238]
[1756801243930,0.6165903,110310.0,110300.0,0.3959703]
[1756801244140,0.6165903,110310.0,110300.0,0.10238]
[1756801244323,0.6165903,110310.0,110300.0,0.3959703]
[1756801244523,0.6165903,110310.0,110300.0,0.10238]
[1756801244828,0.6165903,110310.0,110300.0,0.02951]
[1756801245034,0.9101806,110310.0,110300.0,0.00453]
[1756801245326,1.1601806,110310.0,110280.0,0.15425542]
[1756801245534,0.2935903,110290.0,110280.0,0.44784572]
[1756801246033,0.6535903,110290.0,110280.0,0.15425542]
[1756801246229,0.6235903,110290.0,110280.0,0.04936]
[1756801246630,0.6235903,110290.0,110280.0,0.02498]
[1756801246841,0.6235903,110290.0,110280.0,0.02598]
[1756801247132,0.6735903,110290.0,110280.0,0.02598]
[1756801247341,0.6735903,110290.0,110280.0,0.05036]
[1756801248036,0.6635903,110290.0,110280.0,0.02598]
[1756801248234,1.5018303,110290.0,110280.0,0.08412]
[1756801248439,1.17824,110290.0,110280.0,0.05036]
[1756801248632,1.4718303,110290.0,110280.0,0.08412]
[1756801248829,1.4718303,110290.0,110280.0,0.05036]
[1756801249037,1.4718303,110290.0,110280.0,0.001]
[1756801249334,1.4718303,110290.0,110270.0,0.39542139]
[1756801249534,0.2935903,110280.0,110270.0,0.39542139]
[1756801249837,0.3135903,110280.0,110270.0,0.39542139]
[1756801250732,0.02,110280.0,110270.0,0.39542139]
[1756801250934,1.1318303,110290.0,110280.0,0.08312]
[1756801251232,1.4918303,110290.0,110280.0,0.3767103]
[1756801251537,1.4918303,110290.0,110280.0,0.04936]
[1756801253148,1.4928303,110290.0,110280.0,0.04936]
[1756801253331,1.4948303,110290.0,110280.0,0.04936]
[1756801254439,0.84124,110290.0,110280.0,0.04936]
[1756801254634,1.5148303,110290.0,110280.0,0.04936]
[1756801255959,1.2148303,110290.0,110280.0,0.04936]
[1756801256440,1.2148303,110290.0,110280.0,0.08312]
[1756801256641,1.4548303,110290.0,110280.0,0.08312]
[1756801256939,1.2148303,110290.0,110280.0,0.3767103]
[1756801258837,0.083,110290.0,110280.0,0.9203006]
[1756801259341,0.083,110290.0,110280.0,0.6703006]
[1756801259543,0.083,110290.0,110280.0,0.80555702]
[1756801259742,0.083,110290.0,110280.0,1.05555702]
[1756801260052,0.003,110290.0,110280.0,1.14622692]
[1756801260341,0.02034608,110300.0,110290.0,0.03376]
[1756801260539,0.02034608,110300.0,110290.0,0.37624054]
[1756801260540,0.34034608,110300.0,110290.0,0.37624054]
[1756801260740,0.34034608,110300.0,110290.0,0.44136634]
[1756801263243,0.34034608,110300.0,110290.0,0.37624054]
[1756801263445,0.34034608,110300.0,110290.0,0.44130839]
[1756801263641,0.34034608,110300.0,110290.0,0.69130839]
[1756801264645,0.34034608,110300.0,110290.0,1.52950839]
[1756801265145,0.02034608,110300.0,110290.0,1.52950839]
[1756801266143,0.02011746,110310.0,110300.0,0.1859032]
[1756801266446,0.02041242,110330.0,110320.0,0.04675]
[1756801266640,0.35041242,110330.0,110320.0,0.37403054]
[1756801266947,0.33,110330.0,110320.0,0.39243979]
[1756801267136,0.33,110330.0,110320.0,0.45747422]
[1756801268338,0.03,110330.0,110320.0,0.45747422]
[1756801269239,0.037,110330.0,110320.0,0.45747422]
[1756801272046,0.007,110330.0,110320.0,0.45747422]
[1756801272249,0.007,110330.0,110320.0,0.39243979]
[1756801272444,0.007,110330.0,110320.0,0.45747422]
[1756801273347,0.007,110330.0,110320.0,0.39243979]
[1756801274848,0.007,110330.0,110320.0,0.73307639]
[1756801275038,0.007,110330.0,110320.0,0.79811082]
[1756801275437,0.007,110330.0,110320.0,0.73307639]
[1756801275641,0.007,110330.0,110320.0,0.79811082]
[1756801275843,0.004,110330.0,110320.0,0.79811082]
[1756801276046,0.006,110330.0,110320.0,0.79811082]
[1756801276244,0.005,110330.0,110320.0,0.79811082]
[1756801277748,0.005,110330.0,110320.0,1.63599082]
[1756801279153,0.005,110330.0,110320.0,1.63595082]
[1756801279350,0.005,110330.0,110320.0,0.79811082]
[1756801279655,0.005,110330.0,110320.0,1.54527422]
[1756801280044,0.005,110330.0,110320.0,1.63591082]
[1756801280745,0.005,110330.0,110320.0,0.70747422]
[1756801280949,0.005,110330.0,110320.0,1.29523422]
[1756801283346,0.005,110330.0,110320.0,1.38587082]
[1756801283548,0.005,110330.0,110320.0,1.02771585]
[1756801283755,0.005,110330.0,110320.0,1.32083639]
[1756801283954,0.02046968,110360.0,110320.0,1.95459353]
[1756801284154,0.36046968,110360.0,110350.0,0.38837054]
[1756801284354,0.34,110360.0,110350.0,0.38837054]
[1756801285353,0.347,110360.0,110350.0,0.43692821]
[1756801285646,0.347,110360.0,110350.0,0.38837054]
[1756801285852,0.347,110360.0,110350.0,0.43692821]
[1756801286052,0.352,110360.0,110350.0,0.43692821]
[1756801286350,0.352,110360.0,110350.0,0.50980896]
[1756801286756,0.352,110360.0,110350.0,0.21668842]
[1756801286953,0.352,110360.0,110350.0,0.50980896]
[1756801287148,0.352,110360.0,110350.0,1.26080896]
[1756801287850,0.352,110360.0,110350.0,1.34740896]
[1756801291659,0.352,110360.0,110350.0,0.50980896]
[1756801291857,0.352,110360.0,110350.0,1.29877129]
[1756801293756,0.352,110360.0,110350.0,0.16813075]
[1756801293957,0.602,110360.0,110350.0,0.09542413]
[1756801294161,0.602,110360.0,110350.0,0.12958413]
[1756801294457,0.602,110360.0,110350.0,0.42270467]
[1756801294661,0.602,110360.0,110350.0,0.43704467]
[1756801295360,0.602,110360.0,110350.0,0.38837054]
[1756801299062,0.64512054,110360.0,110340.0,0.48615654]
[1756801299254,0.64512054,110360.0,110350.0,0.09762299]
[1756801299459,0.352,110360.0,110350.0,0.13382299]
[1756801299961,0.348,110360.0,110350.0,0.13382299]
[1756801301559,0.341,110360.0,110350.0,0.13382299]
[1756801303571,0.341,110360.0,110350.0,0.09762299]
[1756801303756,0.88412054,110360.0,110350.0,0.04876299]
[1756801304163,0.90408975,110360.0,110350.0,0.04876299]
[1756801304562,1.74136975,110360.0,110350.0,0.04876299]
[1756801304873,0.38065682,110360.0,110350.0,0.44070353]
[1756801305059,0.36096921,110360.0,110350.0,0.44070353]
[1756801305567,0.36096921,110360.0,110350.0,0.39194054]
[1756801305766,0.36096921,110360.0,110350.0,0.45668411]
[1756801306963,0.36096921,110360.0,110350.0,0.16356357]
[1756801307169,0.36096921,110360.0,110350.0,0.45668411]
[1756801307375,0.36096921,110360.0,110350.0,0.16356357]
[1756801307674,0.36096921,110360.0,110350.0,0.45668411]
[1756801312779,0.36096921,110360.0,110350.0,0.16356357]
[1756801312981,0.36096921,110360.0,110350.0,0.45668411]
[1756801313583,0.36096921,110360.0,110350.0,0.39194054]
[1756801315774,0.36096921,110360.0,110350.0,0.06509268]
[1756801315775,0.90408975,110360.0,110350.0,0.06509268]
[1756801315979,0.90408975,110360.0,110340.0,0.46139082]
[1756801316181,0.65408975,110360.0,110340.0,0.46139082]
[1756801316776,0.65408975,110360.0,110340.0,0.16827028]
[1756801316973,0.29312054,110350.0,110340.0,0.06509268]
[1756801317177,0.61312054,110350.0,110340.0,0.06509268]
[1756801317590,0.86312054,110350.0,110340.0,0.06509268]
[1756801317988,0.86312054,110350.0,110330.0,0.15015268]
[1756801318286,0.86312054,110350.0,110330.0,0.11395268]
[1756801318287,0.32,110350.0,110330.0,0.11395268]
[1756801318484,0.32,110350.0,110340.0,0.04882565]
[1756801318683,0.321,110350.0,110340.0,0.04882565]
[1756801318887,0.94272,110350.0,110340.0,0.04882565]
[1756801319191,0.94372,110350.0,110340.0,0.04882565]
[1756801319381,0.94272,110350.0,110340.0,0.04882565]
[1756801319777,1.23572919,110350.0,110340.0,0.04882565]
[1756801319983,1.77973838,110350.0,110340.0,0.04882565]
[1756801321290,1.78073838,110350.0,110340.0,0.04882565]
[1756801321485,1.78073838,110350.0,110330.0,0.04882565]
[1756801321791,0.58601838,110340.0,110330.0,0.04882565]
[1756801321990,0.90601838,110340.0,110330.0,0.04882565]
[1756801322190,1.15601838,110340.0,110330.0,0.04882565]
[1756801323392,1.15701838,110340.0,110330.0,0.04882565]
[1756801324895,0.90701838,110340.0,110330.0,0.04882565]
[1756801325288,1.15701838,110340.0,110320.0,0.0672349]
[1756801325493,0.83716,110330.0,110320.0,0.1522949]
[1756801325793,1.45016919,110330.0,110320.0,0.1160949]
[1756801325989,1.45016919,110330.0,110320.0,0.0921949]
[1756801326188,1.45016919,110330.0,110320.0,0.0672349]
[1756801326582,1.45016919,110330.0,110320.0,0.0904849]
[1756801327395,1.99317838,110330.0,110320.0,0.0672349]
[1756801327595,2.06460058,110330.0,110310.0,0.04882565]
[1756801327795,0.58601838,110320.0,110310.0,0.04882565]
[1756801327996,1.77324379,110320.0,110310.0,0.04882565]
[1756801328292,1.77324379,110320.0,110300.0,0.04882565]
[1756801328491,0.29300919,110310.0,110300.0,0.13067565]
[1756801328687,0.67300919,110310.0,110300.0,0.09524565]
[1756801328891,0.38,110310.0,110300.0,0.09524565]
[1756801329095,0.96601838,110310.0,110300.0,0.04882565]
[1756801329290,0.67300919,110310.0,110290.0,0.14909071]
[1756801329495,0.8372,110300.0,110290.0,0.14909071]
[1756801329684,1.48020919,110300.0,110290.0,0.11366071]
[1756801329891,1.48020919,110300.0,110290.0,0.06724071]
[1756801329892,1.77321838,110300.0,110290.0,0.06724071]
[1756801330393,1.77321838,110300.0,110290.0,0.04642]
[1756801330593,1.1872,110300.0,110290.0,0.04642]
[1756801330793,1.77321838,110300.0,110290.0,0.04642]
[1756801331487,0.93601838,110300.0,110290.0,0.08185]
[1756801331692,1.77321838,110300.0,110290.0,0.08185]
[1756801332100,1.77321838,110300.0,110280.0,0.08425565]
[1756801332298,0.29300919,110290.0,110280.0,0.42368484]
[1756801332504,0.65338396,110290.0,110280.0,0.37485919]
[1756801333496,0.65338396,110290.0,110280.0,0.08185]